bitfinex/quotes_SOLUSD_20250626
["timestamp","ask_amount","ask_price","bid_price","bid_amount"]
[1750927605276,5.89538015,144.83,144.82,3.9254]
[1750927606072,5.89538015,144.83,144.81,10.85081721]
[1750927606273,5.89538015,144.83,144.82,3.9254]
[1750927607782,0.28432314,144.83,144.82,3.9254]
[1750927608083,5.89538015,144.83,144.81,3.9454]
[1750927608291,31.89538015,144.82,144.81,3.9454]
[1750927609288,31.89538015,144.82,144.81,0.02]
[1750927609688,31.89538015,144.82,144.81,3.9454]
[1750927610314,31.89538015,144.82,144.81,0.02]
[1750927610603,31.89538015,144.82,144.81,3.9454]
[1750927611697,31.89538015,144.82,144.81,0.02]
[1750927612005,31.89538015,144.82,144.81,3.9454]
[1750927612708,31.89538015,144.82,144.81,0.02]
[1750927613006,38.80050375,144.82,144.81,0.02]
[1750927613316,43.91454882,144.82,144.81,0.02]
[1750927613614,37.00942522,144.82,144.81,0.02]
[1750927613801,26.28432314,144.82,144.81,6.92560044]
[1750927614108,146.5,144.84,144.81,10.85100044]
[1750927614312,0.28432314,144.83,144.82,3.9254]
[1750927616326,0.28432314,144.83,144.82,10.8305236]
[1750927619214,172.5,144.84,144.83,3.9254]
[1750927619586,172.5,144.84,144.82,12.51618061]
[1750927619587,26.0,144.84,144.82,16.44158061]
[1750927619812,26.0,144.84,144.83,3.9254]
[1750927620400,0.28432314,144.86,144.83,3.9254]
[1750927620820,26.28432314,144.85,144.84,6.90417011]
[1750927621518,5.11752363,144.88,144.84,6.90417011]
[1750927621519,5.11752363,144.88,144.85,3.9254]
[1750927621725,26.28432314,144.86,144.85,3.9254]
[1750927623022,0.28432314,144.87,144.86,3.9254]
[1750927623328,146.5,144.89,144.87,3.9254]
[1750927623629,146.5,144.89,144.87,9.53645701]
[1750927623848,146.78432314,144.89,144.88,3.9254]
[1750927624034,26.28432314,144.89,144.88,3.9254]
[1750927624207,26.14216157,144.89,144.88,3.9254]
[1750927624611,26.28432314,144.89,144.88,3.9254]
[1750927624927,26.28432314,144.89,144.88,10.82766394]
[1750927625901,26.28432314,144.89,144.88,6.90226394]
[1750927626110,0.28432314,144.89,144.88,10.82766394]
[1750927626323,0.28432314,144.9,144.89,3.9254]
[1750927626902,0.28432314,144.9,144.89,10.82718756]
[1750927627215,0.28432314,144.9,144.89,6.90178756]
[1750927627407,26.0,144.91,144.89,10.82718756]
[1750927627816,31.61105701,144.91,144.89,10.82718756]
[1750927628434,26.0,144.91,144.89,10.82718756]
[1750927629021,26.28432314,144.91,144.9,3.9254]
[1750927631035,26.28432314,144.91,144.89,10.82718756]
[1750927631221,26.28432314,144.91,144.9,3.9254]
[1750927632324,31.89538015,144.91,144.9,3.9254]
[1750927632836,0.28432314,144.87,144.86,3.9254]
[1750927633837,0.28432314,144.87,144.85,3.9254]
[1750927634043,0.28432314,144.87,144.86,3.9254]
[1750927635141,5.89538015,144.87,144.85,3.9254]
[1750927636241,31.61105701,144.86,144.83,10.8298585]
[1750927636444,31.61105701,144.86,144.84,3.9254]
[1750927636843,31.89538015,144.86,144.85,3.9254]
[1750927637148,26.28432314,144.86,144.85,3.9254]
[1750927639952,26.28432314,144.86,144.84,10.82942779]
[1750927640246,26.28432314,144.86,144.85,3.9254]
[1750927640750,26.28432314,144.86,144.84,10.82942779]
[1750927641455,26.28432314,144.86,144.85,3.9254]
[1750927642448,26.28432314,144.86,144.84,10.82942779]
[1750927642749,26.28432314,144.86,144.84,3.9254]
[1750927642945,31.89538015,144.86,144.85,3.9254]
[1750927643150,31.89538015,144.86,144.84,10.82952436]
[1750927643555,31.89538015,144.86,144.85,3.9254]
[1750927643854,26.28432314,144.86,144.85,3.9254]
[1750927644735,26.28432314,144.86,144.84,10.82952436]
[1750927644937,26.28432314,144.86,144.85,3.9254]
[1750927645454,10.72659765,144.89,144.85,3.9254]
[1750927645655,10.72659765,144.89,144.87,3.9254]
[1750927645828,0.28432314,144.88,144.87,3.9254]
[1750927647663,26.0,144.89,144.88,3.9254]
[1750927647953,0.28432314,144.89,144.88,3.9254]
[1750927649833,0.28432314,144.89,144.88,10.82766394]
[1750927652462,0.28432314,144.9,144.89,3.9254]
[1750927652767,0.28432314,144.9,144.88,10.82766394]
[1750927652968,0.28432314,144.9,144.89,3.9254]
[1750927656468,26.0,144.89,144.88,10.82766394]
[1750927658569,26.0,144.89,144.88,3.9254]
[1750927659455,26.0,144.87,144.86,3.9254]
[1750927659652,26.0,144.87,144.86,16.43936866]
[1750927660170,26.0,144.87,144.86,10.82831165]
[1750927662653,26.0,144.87,144.86,3.9254]
[1750927662962,26.0,144.87,144.86,10.82861689]
[1750927671672,26.0,144.87,144.86,3.9254]
[1750927674262,26.0,144.87,144.85,6.90345916]
[1750927674263,26.28432314,144.88,144.87,3.9254]
[1750927674786,0.28432314,144.88,144.87,3.9254]
[1750927675175,26.28432314,144.88,144.87,3.9254]
[1750927681394,0.28432314,144.88,144.87,3.9254]
[1750927681597,0.28432314,144.88,144.87,10.82814038]
[1750927682085,26.0,144.9,144.88,3.9254]
[1750927682286,150.1317264,144.93,144.91,3.9254]
[1750927682486,0.28432314,144.92,144.91,3.9254]
[1750927682705,150.1317264,144.93,144.91,3.9254]
[1750927682981,0.28432314,144.92,144.91,3.9254]
[1750927683182,150.1317264,144.93,144.91,3.9254]
[1750927683389,0.28432314,144.92,144.91,3.9254]
[1750927683719,31.41578523,144.92,144.91,3.9254]
[1750927683912,35.00751163,144.92,144.91,3.9254]
[1750927684233,26.28432314,144.91,144.89,3.9254]
[1750927684393,26.28432314,144.91,144.86,28.04]
[1750927684394,34.72318849,144.9,144.86,3.9254]
[1750927684710,29.5917264,144.87,144.86,3.9254]
[1750927685094,3.5917264,144.87,144.86,3.9254]
[1750927685309,29.5917264,144.87,144.86,3.9254]
[1750927686210,26.0,144.87,144.86,3.9254]
[1750927686518,31.89730055,144.87,144.85,3.9254]
[1750927686690,10.74279558,144.87,144.85,3.9254]
[1750927687207,5.61297741,144.87,144.85,3.9254]
[1750927687711,31.89730055,144.88,144.87,3.9254]
[1750927687912,26.28432314,144.88,144.87,3.9254]
[1750927688411,26.0,144.87,144.86,3.9254]
[1750927688618,26.0,144.87,144.86,10.82861689]
[1750927689409,37.02830546,144.88,144.86,10.82861689]
[1750927689717,31.89730055,144.88,144.86,10.82861689]
[1750927690290,31.41637902,144.88,144.86,10.82861689]
[1750927690490,31.89730055,144.88,144.86,10.82861689]
[1750927690916,31.89730055,144.88,144.87,3.9254]
[1750927690917,31.13205588,144.88,144.87,3.9254]
[1750927691091,26.0,144.88,144.87,3.9254]
[1750927691293,31.13205588,144.88,144.87,3.9254]
[1750927691995,26.0,144.88,144.87,3.9254]
[1750927692696,26.0,144.88,144.87,10.82814038]
[1750927693218,31.13205588,144.9,144.89,3.9254]
[1750927693420,26.0,144.9,144.89,3.9254]
[1750927693617,5.13205588,144.9,144.89,3.9254]
[1750927693820,5.13205588,144.91,144.89,3.9254]
[1750927693999,5.13205588,144.9,144.89,3.9254]
[1750927694199,5.41637902,144.91,144.9,3.9254]
[1750927694413,5.13205588,144.91,144.9,3.9254]
[1750927695317,31.13205588,144.92,144.9,10.82671124]
[1750927695490,31.41637902,144.92,144.91,3.9254]
[1750927696613,31.41637902,144.92,144.91,10.826235]
[1750927697016,31.13205588,144.92,144.91,10.826235]
[1750927697209,26.0,144.92,144.91,10.826235]
[1750927698939,0.04,144.93,144.92,3.9254]
[1750927699217,0.04,144.93,144.92,9.53837741]
[1750927699798,26.04,144.93,144.92,3.9254]
[1750927700894,26.04,144.93,144.92,10.82575881]
[1750927703122,0.04,144.93,144.92,16.43873622]
[1750927703710,0.04,144.93,144.92,10.82575881]
[1750927705838,5.65297741,144.93,144.92,3.9254]
[1750927706131,31.65297741,144.93,144.92,3.9254]
[1750927706315,31.65297741,144.93,144.92,10.82575881]
[1750927706718,26.04,144.93,144.92,10.82575881]
[1750927712267,26.04,144.93,144.92,3.9254]
[1750927712456,31.93730055,144.93,144.92,3.9254]
[1750927715163,31.93730055,144.93,144.91,10.82620987]
[1750927715559,26.32432314,144.93,144.92,3.9254]
[1750927715759,31.93730055,144.93,144.92,3.9254]
[1750927717667,26.32432314,144.93,144.92,3.9254]
[1750927717887,31.93730055,144.93,144.92,3.9254]
[1750927719275,31.93730055,144.93,144.91,3.9254]
[1750927719588,5.89730055,144.92,144.89,3.9254]
[1750927719806,26.28432314,144.91,144.9,3.9254]
[1750927721003,31.89730055,144.91,144.9,3.9254]
[1750927723596,26.28432314,144.91,144.9,3.9254]
[1750927723999,31.89730055,144.91,144.9,3.9254]
[1750927728892,0.28432314,144.9,144.89,3.9254]
[1750927729209,5.89730055,144.9,144.89,3.9254]
[1750927730791,26.0,144.88,144.87,10.82814038]
[1750927730994,5.1138481,144.9,144.87,10.82814038]
[1750927730995,0.28432314,144.9,144.89,3.9254]
[1750927731712,5.89730055,144.9,144.89,3.9254]
[1750927731886,5.89730055,144.9,144.87,6.90274038]
[1750927731887,0.28432314,144.89,144.88,3.9254]
[1750927732096,0.28432314,144.89,144.87,3.9254]
[1750927732097,31.89730055,144.89,144.87,3.9254]
[1750927732284,0.28432314,144.89,144.88,3.9254]
[1750927732486,26.28432314,144.88,144.87,10.82812735]
[1750927732719,31.89730055,144.88,144.87,10.82812735]
[1750927733226,31.89730055,144.88,144.87,3.9254]
[1750927734022,26.28432314,144.88,144.87,3.9254]
[1750927734232,31.89730055,144.88,144.87,3.9254]
[1750927736214,29.87636815,144.88,144.87,3.9254]
[1750927737303,26.0,144.87,144.86,10.82848888]
[1750927737494,29.59204501,144.87,144.86,10.82848888]
[1750927738089,29.59204501,144.87,144.86,3.9254]
[1750927738801,29.59204501,144.87,144.85,3.9254]
[1750927739004,3.87636815,144.87,144.86,3.9254]
[1750927739314,3.87636815,144.87,144.82,20.8545651]
[1750927739315,0.28432314,144.86,144.85,3.9254]
[1750927739491,3.87636815,144.86,144.85,3.9254]
[1750927739892,3.87636815,144.86,144.84,3.9254]
[1750927740209,3.87636815,144.85,144.84,3.9254]
[1750927741642,5.11627394,144.87,144.84,3.9254]
[1750927741643,26.0,144.86,144.84,10.82957011]
[1750927742831,26.28432314,144.86,144.85,3.9254]
[1750927743719,26.28432314,144.86,144.84,10.82957011]
[1750927744049,26.28432314,144.86,144.85,3.9254]
[1750927744050,31.89769597,144.86,144.85,3.9254]
[1750927744240,26.0,144.86,144.85,3.9254]
[1750927744617,26.0,144.86,144.85,10.82909347]
[1750927744819,5.61337283,144.89,144.85,10.82909347]
[1750927745031,31.61337283,144.89,144.88,3.9254]
[1750927745431,31.89769597,144.89,144.88,3.9254]
[1750927745634,31.61337283,144.89,144.88,3.9254]
[1750927745818,31.89769597,144.89,144.88,3.9254]
[1750927746020,26.28432314,144.89,144.88,3.9254]
[1750927746225,31.89769597,144.89,144.88,3.9254]
[1750927748326,31.89769597,144.89,144.88,10.82766394]
[1750927751245,31.89769597,144.89,144.88,3.9254]
[1750927751417,26.28432314,144.89,144.88,3.9254]
[1750927751940,31.89769597,144.89,144.88,3.9254]
[1750927752529,26.28432314,144.89,144.88,3.9254]
[1750927752735,31.89769597,144.89,144.88,3.9254]
[1750927752936,26.28432314,144.89,144.88,3.9254]
[1750927753137,31.89769597,144.89,144.88,3.9254]
[1750927754755,31.89769597,144.89,144.88,10.82766394]
[1750927757548,26.0,144.89,144.88,10.82766394]
[1750927759235,0.28432314,144.88,144.87,3.9254]
[1750927759434,5.89769597,144.88,144.87,3.9254]
[1750927759959,5.89769597,144.88,144.86,3.9254]
[1750927760158,0.28432314,144.88,144.87,3.9254]
[1750927760341,26.28432314,144.86,144.85,3.9254]
[1750927760543,31.40583256,144.86,144.85,3.9254]
[1750927760742,26.28432314,144.86,144.84,3.9254]
[1750927761364,5.89769597,144.85,144.84,3.9254]
[1750927765282,0.28432314,144.85,144.84,3.9254]
[1750927765451,5.89769597,144.85,144.84,10.82957011]
[1750927765948,5.40583256,144.86,144.85,3.9254]
[1750927766146,0.28432314,144.86,144.85,3.9254]
[1750927767164,0.28432314,144.86,144.85,10.82909347]
[1750927768953,26.28432314,144.87,144.86,3.9254]
[1750927769175,31.89769597,144.87,144.86,3.9254]
[1750927769369,37.01964837,144.87,144.86,3.9254]
[1750927769559,31.89769597,144.87,144.86,3.9254]
[1750927770958,31.89769597,144.87,144.86,10.82861689]
[1750927770959,37.01964837,144.87,144.86,10.82861689]
[1750927771159,31.89769597,144.87,144.86,10.82861689]
[1750927771562,37.01964837,144.87,144.86,10.82861689]
[1750927771763,31.89769597,144.87,144.86,10.82861689]
[1750927772165,37.01964837,144.87,144.86,10.82861689]
[1750927772472,31.89769597,144.87,144.86,10.82861689]
[1750927772961,37.01964837,144.87,144.86,10.82861689]
[1750927773169,31.89769597,144.87,144.86,10.82861689]
[1750927773661,37.01964837,144.87,144.86,6.90321689]
[1750927773865,26.28432314,144.87,144.86,10.82861689]
[1750927774386,31.40627554,144.87,144.86,10.82861689]
[1750927774577,31.89769597,144.87,144.86,10.82861689]
[1750927775484,37.01964837,144.87,144.86,10.82861689]
[1750927775670,31.89769597,144.87,144.86,10.82861689]
[1750927776080,37.01964837,144.87,144.86,10.82861689]
[1750927776896,31.89769597,144.87,144.86,3.9254]
[1750927777268,37.01964837,144.87,144.86,3.9254]
[1750927777595,31.89769597,144.87,144.86,3.9254]
[1750927777904,31.89769597,144.87,144.86,10.82861689]
[1750927778099,37.01964837,144.87,144.86,10.82861689]
[1750927778282,31.89769597,144.87,144.86,10.82861689]
[1750927778679,26.0,144.87,144.86,10.82861689]
[1750927785314,5.12864487,144.88,144.86,10.82861689]
[1750927785514,5.12864487,144.89,144.88,3.9254]
[1750927785996,26.0,144.89,144.88,3.9254]
[1750927786391,31.12864487,144.9,144.88,3.9254]
[1750927787014,36.7420177,144.9,144.88,3.9254]
[1750927787315,36.7420177,144.9,144.88,10.8273337]
[1750927788605,31.41296801,144.9,144.89,3.9254]
[1750927789221,31.41296801,144.9,144.89,10.82718756]
[1750927790613,31.12864487,144.9,144.89,10.82718756]
[1750927790812,26.0,144.9,144.89,10.82718756]
[1750927817844,5.16864487,144.93,144.92,3.9254]
[1750927818348,26.04,144.93,144.92,3.9254]
[1750927818931,26.04,144.93,144.92,10.82575881]
[1750927819157,0.04,144.93,144.92,14.41605385]
[1750927820466,26.04,144.93,144.92,3.9254]
[1750927820771,35.04326305,144.93,144.92,3.9254]
[1750927821259,29.91461818,144.93,144.92,3.9254]
[1750927822274,37.06231919,144.93,144.92,3.9254]
[1750927824084,0.28432314,144.92,144.91,3.9254]
[1750927824455,5.89367432,144.92,144.91,3.9254]
[1750927827063,11.02231919,144.92,144.91,3.9254]
[1750927829644,5.41296801,144.92,144.91,3.9254]
[1750927829873,11.02231919,144.92,144.91,3.9254]
[1750927831186,5.41296801,144.92,144.91,3.9254]
[1750927831353,5.12864487,144.92,144.91,10.826235]
[1750927833466,31.16864487,144.93,144.91,10.826235]
[1750927833946,31.45296801,144.93,144.92,3.9254]
[1750927834580,31.45296801,144.93,144.92,10.82575881]
[1750927834970,31.16864487,144.93,144.92,10.82575881]
[1750927835278,31.16864487,144.93,144.92,16.43510999]
[1750927836068,0.04,144.93,144.92,16.43510999]
[1750927839569,0.04,144.93,144.92,10.82575881]
[1750927844388,0.04,144.93,144.92,14.41417472]
[1750927845067,0.04,144.93,144.92,10.82575881]
[1750927845271,0.04,144.93,144.92,14.41417472]
[1750927845774,0.04,144.93,144.92,10.82575881]
[1750927846298,0.04,144.93,144.92,16.43160351]
[1750927847879,0.04,144.93,144.92,10.82575881]
[1750927849102,0.04,144.93,144.92,3.9254]
[1750927850300,0.04,144.93,144.92,10.82575881]
[1750927851911,0.04,144.93,144.92,10.82575881]
[1750927868120,5.16864487,144.93,144.92,10.82575881]
[1750927873735,0.04,144.93,144.92,14.41446218]
[1750927874328,0.04,144.93,144.92,42.43446218]
[1750927877301,0.04,144.93,144.92,38.84575881]
[1750927878526,0.04,144.93,144.92,10.82575881]
[1750927878708,0.04,144.93,144.92,3.9254]
[1750927878911,5.17825123,144.93,144.92,3.9254]
[1750927880015,5.17825123,144.93,144.92,10.82575881]
[1750927882824,11.07007611,144.93,144.92,3.9254]
[1750927884236,5.46257437,144.93,144.92,3.9254]
[1750927884534,11.07007611,144.93,144.92,3.9254]
[1750927894426,11.07007611,144.93,144.92,10.82575881]
[1750927894636,5.17825123,144.93,144.92,10.82575881]
[1750927894838,0.04,144.93,144.92,10.82575881]
[1750927896040,5.17825123,144.93,144.92,10.82575881]
[1750927896234,0.04,144.93,144.92,10.82575881]
[1750927896432,5.17825123,144.93,144.92,10.82575881]
[1750927896639,0.04,144.93,144.92,10.82575881]
[1750927897835,0.04,144.93,144.92,16.43326055]
[1750927898235,0.04,144.93,144.92,10.82575881]
[1750927902242,0.04,144.93,144.92,16.43326055]
[1750927904259,0.04,144.93,144.92,10.82575881]
[1750927904456,0.04,144.93,144.92,14.41384294]
[1750927905256,0.04,144.93,144.92,10.82575881]
[1750927910854,3.91240727,144.93,144.92,3.9254]
[1750927911059,0.32432314,144.93,144.92,10.82575881]
[1750927911244,3.91240727,144.93,144.92,3.9254]
[1750927911444,9.04595829,144.93,144.91,3.9254]
[1750927911650,3.87240727,144.92,144.91,3.9254]
[1750927914782,0.28432314,144.92,144.91,10.826235]
[1750927914972,5.45787416,144.93,144.92,3.9254]
[1750927915167,0.32432314,144.93,144.92,3.9254]
[1750927915361,0.04,144.93,144.92,10.82575881]
[1750927915570,26.04,144.93,144.92,10.82575881]
[1750927920516,26.32432314,144.93,144.92,3.9254]
[1750927920664,37.06512949,144.93,144.92,3.9254]
[1750927921674,37.06512949,144.93,144.92,10.82575881]
[1750927921872,37.06512949,144.93,144.92,3.9254]
[1750927922568,26.32432314,144.93,144.92,10.82575881]
[1750927922770,31.45787416,144.93,144.92,10.82575881]
[1750927923562,37.06512949,144.93,144.92,3.9254]
[1750927923769,37.06512949,144.93,144.88,11.54725533]
[1750927923770,0.28432314,144.92,144.91,3.9254]
[1750927924097,11.02512949,144.92,144.91,3.9254]
[1750927924510,11.02512949,144.92,144.9,3.9254]
[1750927924672,11.02512949,144.91,144.9,3.9254]
[1750927924876,5.89157847,144.91,144.9,3.9254]
[1750927925091,11.02512949,144.91,144.9,3.9254]
[1750927925287,5.89157847,144.91,144.9,3.9254]
[1750927925593,11.02512949,144.91,144.9,3.9254]
[1750927925775,5.89157847,144.91,144.9,3.9254]
[1750927925977,11.02512949,144.91,144.9,3.9254]
[1750927926176,5.89157847,144.91,144.9,10.82671124]
[1750927926390,11.02512949,144.91,144.9,10.82671124]
[1750927926676,5.89157847,144.91,144.9,10.82671124]
[1750927926890,11.02512949,144.91,144.9,10.82671124]
[1750927927178,5.89157847,144.91,144.9,10.82671124]
[1750927927389,11.02512949,144.91,144.9,10.82671124]
[1750927927590,5.89157847,144.91,144.9,10.82671124]
[1750927927790,11.02512949,144.91,144.9,10.82671124]
[1750927928007,5.89157847,144.91,144.9,10.82671124]
[1750927928193,11.02512949,144.91,144.9,10.82671124]
[1750927928394,5.89157847,144.91,144.9,10.82671124]
[1750927928601,11.02512949,144.91,144.9,10.82671124]
[1750927928905,5.89157847,144.91,144.9,10.82671124]
[1750927929199,11.02512949,144.91,144.9,10.82671124]
[1750927929395,5.89157847,144.91,144.9,10.82671124]
[1750927929603,5.41787416,144.91,144.9,10.82671124]
[1750927930104,0.28432314,144.91,144.9,10.82671124]
[1750927933506,5.89157847,144.91,144.9,10.82671124]
[1750927933810,26.28432314,144.87,144.86,10.82861689]
[1750927934005,0.28432314,144.87,144.86,10.82861689]
[1750927936420,26.28432314,144.9,144.89,3.9254]
[1750927936599,37.01764309,144.9,144.89,3.9254]
[1750927937290,37.01764309,144.9,144.88,3.9254]
[1750927937515,5.60725533,144.89,144.88,3.9254]
[1750927942297,3.59216292,144.89,144.88,3.9254]
[1750927942596,29.59216292,144.89,144.88,3.9254]
[1750927947524,3.59216292,144.89,144.88,3.9254]
[1750927947825,29.59216292,144.89,144.88,3.9254]
[1750927948015,3.59216292,144.89,144.88,3.9254]
[1750927948222,29.59216292,144.89,144.88,3.9254]
[1750927948425,3.59216292,144.89,144.88,3.9254]
[1750927948595,29.59216292,144.89,144.88,3.9254]
[1750927948801,3.59216292,144.89,144.88,3.9254]
[1750927949035,29.59216292,144.89,144.88,3.9254]
[1750927949234,3.87648606,144.89,144.88,3.9254]
[1750927949422,0.28432314,144.89,144.88,3.9254]
[1750927951040,0.28432314,144.89,144.88,10.82766394]
[1750927952736,26.28432314,144.89,144.88,10.82766394]
[1750927953945,26.28432314,144.89,144.88,3.9254]
[1750927954509,29.87648606,144.89,144.88,3.9254]
[1750927956032,0.28432314,144.88,144.87,3.9254]
[1750927956337,3.87648606,144.88,144.86,3.9254]
[1750927956512,3.87648606,144.88,144.85,3.9254]
[1750927956513,0.28432314,144.86,144.85,3.9254]
[1750927956828,3.87648606,144.86,144.85,3.9254]
[1750927958318,31.89980028,144.86,144.85,3.9254]
[1750927958516,37.01996372,144.86,144.85,3.9254]
[1750927960129,62.57282947,144.86,144.85,3.9254]
[1750927960335,36.57282947,144.86,144.85,3.9254]
[1750927960634,26.0,144.83,144.82,3.9254]
[1750927960838,31.61547714,144.83,144.82,3.9254]
[1750927961810,31.89980028,144.83,144.82,3.9254]
[1750927962518,38.8044471,144.83,144.82,3.9254]
[1750927962742,43.91688556,144.83,144.82,3.9254]
[1750927963244,18.933972,144.81,144.75,1.0651266]
[1750927963425,18.933972,144.81,144.69,18.86376847]
[1750927963426,5.89980028,144.76,144.69,18.86376847]
[1750927963618,0.28432314,144.73,144.7,6.94285003]
[1750927963841,5.89980028,144.73,144.7,6.94285003]
[1750927964018,5.89980028,144.73,144.71,0.024]
[1750927964223,26.28432314,144.73,144.71,5.61547714]
[1750927964743,26.28432314,144.73,144.72,5.61547714]
[1750927964913,26.0,144.77,144.72,12.5253721]
[1750927965113,0.28432314,144.76,144.75,5.61547714]
[1750927965337,0.28432314,144.76,144.74,5.61547714]
[1750927965919,0.28432314,144.76,144.75,5.61547714]
[1750927966122,26.28432314,144.76,144.72,24.18463238]
[1750927966335,26.28432314,144.76,144.75,5.61547714]
[1750927966728,26.28432314,144.76,144.7,24.18797511]
[1750927966928,26.28432314,144.76,144.75,5.61547714]
[1750927967238,0.28432314,144.76,144.75,5.61547714]
[1750927967630,26.0,144.77,144.75,5.61547714]
[1750927967631,1.6649,144.81,144.75,5.61547714]
[1750927967815,0.28432314,144.8,144.77,5.61547714]
[1750927968019,0.28432314,144.78,144.77,5.61547714]
[1750927969042,0.28432314,144.78,144.77,12.5229856]
[1750927970925,26.0,144.79,144.77,12.5229856]
[1750927971118,26.28432314,144.79,144.78,5.61547714]
[1750927971322,162.79710539,144.85,144.78,5.61547714]
[1750927971534,6.90287885,144.87,144.83,5.61547714]
[1750927971740,26.0,144.84,144.78,18.64964886]
[1750927971923,0.28432314,144.86,144.82,5.61547714]
[1750927972118,0.28432314,144.84,144.81,5.61547714]
[1750927972345,26.28432314,144.84,144.8,5.61547714]
[1750927973348,26.28432314,144.84,144.8,12.52125889]
[1750927974244,31.89980028,144.84,144.8,12.52125889]
[1750927974642,26.28432314,144.84,144.8,12.52125889]
[1750927975353,26.28432314,144.84,144.8,12.52164418]
[1750927976859,26.28432314,144.84,144.81,12.52112549]
[1750927977554,26.28432314,144.84,144.81,6.90526306]
[1750927977854,26.28432314,144.84,144.81,12.52112549]
[1750927982459,0.28432314,144.82,144.81,12.52146287]
[1750927985164,26.0,144.84,144.81,6.90560044]
[1750927985338,0.28432314,144.83,144.81,6.90560044]
[1750927985539,0.28432314,144.83,144.82,5.61586243]
[1750927985741,146.5,144.87,144.83,6.90464682]
[1750927985941,0.04,144.9,144.86,5.61586243]
[1750927986165,0.04,144.9,144.88,5.61586243]
[1750927986464,0.28432314,144.88,144.87,5.61586243]
[1750927986667,0.04,144.9,144.87,5.61586243]
[1750927987040,26.0,144.89,144.87,5.61586243]
[1750927987468,0.28432314,144.88,144.86,5.61586243]
[1750927988058,0.28432314,144.88,144.87,5.61586243]
[1750927988257,0.28432314,144.88,144.87,12.51860281]
[1750927988857,0.28432314,144.88,144.87,6.90274038]
[1750927991566,0.28432314,144.88,144.85,5.61586243]
[1750927991766,26.28432314,144.88,144.85,5.61586243]
[1750927991956,26.28432314,144.88,144.84,5.61586243]
[1750927995242,26.28432314,144.88,144.85,6.90369347]
[1750927995445,0.28432314,144.87,144.82,11.59586243]
[1750927997063,0.28432314,144.85,144.83,6.90464682]
[1750927998571,0.28432314,144.85,144.83,12.52050925]
[1750927999875,26.28432314,144.86,144.83,12.52050925]
[1750928001571,26.28432314,144.86,144.83,6.90464682]
[1750928001881,26.28432314,144.86,144.83,12.52050925]
[1750928002343,26.28432314,144.86,144.84,5.61586243]
[1750928002547,0.28432314,144.86,144.85,5.61586243]
[1750928002771,0.28432314,144.86,144.83,24.16626388]
[1750928003093,26.0,144.87,144.85,5.61586243]
[1750928003275,26.0,144.87,144.86,5.61586243]
[1750928003873,146.82432314,144.9,144.87,6.90274038]
[1750928003874,0.28432314,144.89,144.87,6.90274038]
[1750928004079,0.28432314,144.88,144.87,12.51860281]
[1750928005781,0.28432314,144.88,144.87,6.90274038]
[1750928005984,0.28432314,144.88,144.87,12.51860281]
[1750928006456,0.28432314,144.88,144.87,6.90274038]
[1750928007756,146.54,144.9,144.87,12.51860281]
[1750928007963,0.28432314,144.89,144.87,12.51860281]
[1750928011189,0.28432314,144.89,144.87,6.90274038]
[1750928012293,0.28432314,144.88,144.85,5.61586243]
[1750928013389,0.28432314,144.88,144.84,34.92417011]
[1750928013390,0.28432314,144.88,144.84,12.52003254]
[1750928014785,0.28432314,144.88,144.84,6.90417011]
[1750928015085,0.28432314,144.88,144.84,12.52003254]
[1750928018400,0.28432314,144.88,144.84,6.90417011]
[1750928018580,0.28432314,144.88,144.84,12.52003254]
[1750928019465,0.28432314,144.88,144.82,6.9051236]
[1750928019699,0.28432314,144.85,144.82,6.9051236]
[1750928020599,0.28432314,144.85,144.82,5.61586243]
[1750928022169,0.28432314,144.85,144.83,6.90464682]
[1750928023994,0.28432314,144.85,144.83,12.52050925]
[1750928024994,26.0,144.86,144.83,12.52050925]
[1750928025203,0.28432314,144.85,144.84,5.61586243]
[1750928026903,0.28432314,144.85,144.84,12.52003254]
[1750928028201,0.28432314,144.85,144.84,6.90417011]
[1750928028398,0.28432314,144.85,144.84,12.52003254]
[1750928030175,26.28432314,144.85,144.84,12.52003254]
[1750928032103,0.28432314,144.85,144.84,6.90417011]
[1750928033806,0.28432314,144.85,144.83,6.90464682]
[1750928038291,0.28432314,144.85,144.84,5.61586243]
[1750928038604,5.10495643,144.87,144.84,5.61586243]
[1750928038910,0.28432314,144.86,144.85,5.61586243]
[1750928040206,0.28432314,144.86,144.85,12.5195559]
[1750928040413,5.10495643,144.88,144.85,12.5195559]
[1750928040608,0.28432314,144.87,144.86,5.61586243]